Workbook

Sheet koning
A2: Koningsvissen senioren 2024
A3: Versie 24.3
A4: Bijgew. t/m 27-10-24 | B4: Koning 1 | E4: Koning 2 | H4: Koning 3 | J4: Koning 4 | L4: Koning 5 | N4: Koning 6
B5: Ambt. | E5: Ambt. | H5: Kl. Vilt | J5: Kl. Vilt | L5: Krib | N5: Krib | P5: Konings | Q5: Konings | R5: Konings | S5: Konings
B6: 2024-06-29 | E6: 2024-07-13 | H6: 2024-07-20 | J6: 2024-09-07 | L6: 2024-09-14 | N6: 2024-10-26 | P6: Totaal- | Q6: Totaal- | R6: Totaal- | S6: Uitslag | T6: Viltbeker
A7: Naam | P7: pnt. | Q7: 4wedstr. | R7: gewicht | T7: gewicht
B8: gewicht | C8: pl. | D8: pnt. | E8: gewicht | F8: pl. | G8: pnt. | H8: gewicht | I8: pnt. | J8: gewicht | K8: pnt. | L8: gewicht | M8: pnt. | N8: gewicht | O8: pnt. | V8: Tot. | W8: K1 | X8: K2 | Y8: K3 | Z8: K4 | AA8: K5 | AB8: K6 | AC8: HW | AD8: Snel-Toets
A9: Ard van den Berg | B9: 146 | C9: 1 | D9: 6 | E9: 736 | F9: 1 | G9: 5 | H9: 139 | I9: 4 | J9: 146 | K9: 7 | L9: 109 | M9: 6 | N9: 268 | O9: 6 | P9: =SUM(D9+G9+I9+K9+M9+O9) -> 34 | Q9: =V9 -> 21 | R9: =SUM(B9+E9+H9+J9+L9+N9) -> 1544 | S9: 7 | T9: =SUM(B9+E9+H9+J9) -> 1167 | V9: =SUM(W9+X9+Y9+Z9+AA9+AB9) -> 21 | W9: =D9 -> 6 | X9: =G9 -> 5 | Y9: =I9 -> 4 | AB9: =O9 -> 6 | AC9: =MAX(W9,X9,Y9,Z9,AA9,AB9) -> 6 | AD9: Cntl-Shift-Q
A10: Frans Bonants | B10: 279 | C10: 2 | D10: 5 | E10: 2246 | F10: 7 | G10: 2 | H10: 356 | I10: 2 | J10: 920 | K10: 2 | L10: 3300 | M10: 1 | N10: 515 | O10: 3 | P10: =SUM(D10+G10+I10+K10+M10+O10) -> 15 | Q10: =V10 -> 7 | R10: 7616 | S10: 2 | T10: 3801 | V10: 7 | X10: 2 | Y10: 2 | Z10: =K10 -> 2 | AA10: =M10 -> 1 | AC10: =MAX(W10,X10,Y10,Z10,AA10,AB10) -> 2 | AD10: Cntl-Shift-W
A11: Gerrie Michielsen | B11: 186 | C11: 10 | D11: 5 | F11: NA | G11: 100 | I11: 100 | K11: 100 | M11: 100 | O11: 100 | P11: 505 | Q11: 305 | R11: 186 | S11: onvld. | T11: 186 | V11: 305 | W11: 5 | Z11: 100 | AA11: 100 | AB11: 100 | AC11: 100 | AD11: Cntl-Shift-E
A12: Henny van Daal | B12: 780 | C12: 3 | D12: 3 | F12: NA | G12: 100 | I12: 100 | J12: 291 | K12: 5 | L12: 375 | M12: 5 | O12: 100 | P12: 313 | Q12: 113 | R12: 1446 | S12: onvld. | T12: 1071 | V12: 113 | W12: 3 | Z12: 5 | AA12: 5 | AB12: 100 | AC12: 100 | AD12: Cntl-Shift-R
A13: Jan Arts | B13: 410 | C13: 8 | D13: 4 | E13: 1535 | F13: 3 | G13: 3 | H13: 30 | I13: 6 | K13: 100 | M13: 100 | N13: 354 | O13: 4 | P13: 217 | Q13: 17 | R13: 2329 | S13: 5 | T13: 1975 | V13: 17 | W13: 4 | X13: 3 | Y13: 6 | AB13: 4 | AC13: 6 | AD13: Cntl-Shift-T
A14: Jan Cornelissen | B14: 730 | C14: 7 | D14: 2 | F14: NA | G14: 100 | H14: 0 | I14: 7 | K14: 100 | M14: 100 | O14: 100 | P14: 409 | Q14: 209 | R14: 730 | S14: onvld. | T14: 730 | V14: 209 | W14: 2 | Y14: =I14 -> 7 | AA14: =M14 -> 100 | AB14: =O14 -> 100 | AC14: 100 | AD14: Cntl-Shift-Y
A15: Man Verbroekken | B15: 452 | C15: 9 | D15: 3 | E15: 354 | F15: 5 | G15: 7 | H15: 83 | I15: 5 | J15: 258 | K15: 6 | L15: 1794 | M15: 2 | N15: 321 | O15: 5 | P15: 28 | Q15: 15 | R15: 3262 | S15: 4 | T15: 1147 | V15: 15 | W15: 3 | Y15: 5 | AA15: 2 | AB15: 5 | AC15: 5 | AD15: Cntl-Shift-U
A16: Ronnie van der Beek | B16: 3074 | C16: 5 | D16: 1 | E16: 5721 | F16: 4 | G16: 1 | H16: 743 | I16: 1 | J16: 1675 | K16: 1 | M16: 100 | N16: 922 | O16: 2 | P16: 106 | Q16: 4 | R16: 12135 | S16: 1 | T16: 11213 | V16: 4 | W16: 1 | X16: 1 | Y16: =I16 -> 1 | Z16: 1 | AC16: 1 | AD16: Cntl-Shift-I
A17: Roy Verbroekken | B17: 1657 | C17: 4 | D17: 2 | E17: 636 | F17: 6 | G17: 6 | H17: 300 | I17: 3 | J17: 470 | K17: 3 | L17: 1107 | M17: 3 | N17: 927 | O17: 1 | P17: 18 | Q17: 9 | R17: 5097 | S17: 3 | T17: 3063 | V17: 9 | W17: 2 | Z17: 3 | AA17: 3 | AB17: 1 | AC17: 3 | AD17: Cntl-Shift-O
A18: Rudie de Haan | B18: 591 | C18: 6 | D18: 4 | E18: 862 | F18: 2 | G18: 4 | H18: 0 | I18: 7 | J18: 88 | K18: 8 | M18: 100 | N18: 242 | O18: 7 | P18: 130 | Q18: 22 | R18: 1783 | S18: 8 | T18: 1541 | V18: 22 | W18: 4 | X18: 4 | Y18: 7 | AB18: 7 | AC18: 7 | AD18: Cntl-Shift-P
A19: Sjaak Thoonen | B19: 1146 | C19: 11 | D19: 1 | F19: NA | G19: 100 | H19: 0 | I19: 7 | J19: 307 | K19: 4 | L19: 869 | M19: 4 | O19: 100 | P19: 216 | Q19: 16 | R19: 2322 | S19: 6 | T19: 1453 | V19: 16 | W19: 1 | Y19: 7 | Z19: 4 | AA19: 4 | AC19: 7 | AD19: Cntl-Shift-A
A20: Sven Cornelissen | C20: NA | D20: 100 | F20: NA | G20: 100 | I20: 100 | K20: 100 | M20: 100 | O20: 100 | P20: =SUM(D20+G20+I20+K20+M20+O20) -> 600 | Q20: 600 | R20: 0 | S20: onvld. | T20: 0 | V20: =SUM(W20+X20+Y20+Z20+AA20+AB20) -> 600 | W20: 100 | X20: 100 | Y20: 100 | Z20: 100 | AA20: 100 | AB20: 100 | AC20: 100 | AD20: Cntl-Shift-S
P21: 0 | Q21: 0 | R21: 0 | T21: 0 | V21: 0 | W21: 0 | X21: 0 | Y21: 0 | Z21: 0 | AA21: 0 | AB21: 0 | AC21: 0 | AD21: Cntl-Shift-D
P22: 0 | Q22: 0 | R22: 0 | T22: 0 | V22: 0 | W22: 0 | X22: 0 | Y22: 0 | Z22: 0 | AA22: 0 | AB22: 0 | AC22: 0 | AD22: Cntl-Shift-F
B23: ========== | E23: ========= | H23: ========== | J23: ========= | L23: ========== | N23: ========= | R23: ========
B24: =SUM(B9:B22) -> 9451 | E24: =SUM(E9:E22) -> 12090 | H24: =SUM(H9:H22) -> 1651 | J24: =SUM(J9:J22) -> 4155 | L24: =SUM(L9:L22) -> 7554 | N24: =SUM(N9:N22) -> 3549 | R24: =SUM(R9:R22) -> 38450 | V24: In het HW rijtje staat de hoogste waarde.
C25: Sec. 1 | D25: Sec. 2 | V25: Wordt de hoogste waarde gewist dan wordt de volgende hoogste waarde getoond.
A27: Bekerwedstrijden 2024 | V27: Wis de twee hoogste waarden in de groene tabel en zie het aantal punten van 4 wedstrijden in kolom Q.
B28: 1 | D28: 2 | F28: 3 | V28: De originele punten van het ingevulde overzicht blijven behouden.
A29: Naam | B29: v/d Heuvel Trofee | D29: Verenigingsbeker | F29: Clubbeker | H29: Vrije wedstrijd
B30: Ambtenarengat | D30: Kl. Vilt | F30: Krib | V30: Wis je per abuis iets teveel, ga dan op een cel in kolom K1 staan en toets de bijhorende Snel-Toets in.
B31: 2024-06-30 | D31: 2024-07-07 | F31: 2024-07-28 | H31: xx-xx-xxxx | V31: De originele ingevulde gegevens komen dan weer terug en je kunt opnieuw beginnen.
I32: Totaal- | J32: Beker- | K32: Konings- | L32: Totaal-
B33: gewicht | C33: pnt. | D33: gewicht | E33: pnt. | F33: gewicht | G33: pnt. | H33: gewicht | I33: gewicht | J33: punten | K33: punten | L33: punten | V33: 3x 100 voldoet niet aan norm van 4.
A34: =A9 -> Ard van den Berg | B34: 51 | C34: 7 | D34: 0 | E34: 5 | F34: 0 | G34: 6.5 | I34: =SUM(B34+D34+F34) -> 51 | J34: =SUM(C34+E34+G34) -> 18.5 | K34: 34 | L34: =SUM(J34:K34) -> 52.5
A35: Frans Bonants | B35: 2390 | C35: 1 | D35: 666 | E35: 1 | F35: 484 | G35: 1 | I35: =SUM(B35+D35+F35) -> 3540 | J35: =SUM(C35+E35+G35) -> 3 | K35: 15 | L35: 18 | V35: Bij Niet Aanwezig de waarde 100 invullen.
A36: Gerrie Michielsen | C36: 10.5 | E36: 9 | G36: 10.5 | I36: 0 | J36: =SUM(C36+E36+G36) -> 30 | K36: 505 | L36: 535
A37: Henny van Daal | C37: 10.5 | E37: 9 | G37: 10.5 | I37: 0 | J37: =SUM(C37+E37+G37) -> 30 | K37: 313 | L37: 343
A38: Jan Arts | B38: 1018 | C38: 2 | D38: 15 | E38: 4 | G38: 10.5 | I38: 1033 | J38: =SUM(C38+E38+G38) -> 16.5 | K38: 217 | L38: 233.5
A39: Jan Cornelissen | B39: 235 | C39: 5 | D39: 48 | E39: 3 | F39: 396 | G39: 2 | I39: 679 | J39: 10 | K39: 409 | L39: 419
A40: Man Verbroekken | C40: 10.5 | E40: 9 | F40: 0 | G40: 6.5 | I40: 0 | J40: 26 | K40: 28 | L40: 54
A41: =A16 -> Ronnie van der Beek | B41: 298 | C41: 3 | D41: 307 | E41: 2 | G41: 10.5 | I41: 605 | J41: 15.5 | K41: 106 | L41: 121.5
A42: =A17 -> Roy Verbroekken | C42: 10.5 | E42: 9 | F42: 0 | G42: 6.5 | I42: 0 | J42: 26 | K42: 18 | L42: 44
A43: =A18 -> Rudie de Haan | B43: 6 | C43: 8 | E43: 9 | F43: 76 | G43: 3 | I43: 82 | J43: 20 | K43: 130 | L43: 150
A44: =A19 -> Sjaak Thoonen | B44: 93 | C44: 6 | E44: 9 | F44: 60 | G44: 4 | I44: 153 | J44: 19 | K44: 216 | L44: 235
A45: =A20 -> Sven Cornelissen | B45: 286 | C45: 4 | E45: 9 | F45: 0 | G45: 6.5 | I45: 286 | J45: =SUM(C45+E45+G45) -> 19.5 | K45: =SUM(Q20) -> 600 | L45: 619.5
I46: 0 | J46: =SUM(C46+E46+G46) -> 0 | K46: 0 | L46: 0
I47: 0 | J47: =SUM(C47+E47+G47) -> 0 | K47: 0 | L47: 0
B48: ========= | D48: ====== | F48: ======= | H48: =========== | I48: =======
A49: Totaal in grammen | B49: =SUM(B34:B47) -> 4377 | D49: =SUM(D34:D47) -> 1036 | F49: =SUM(F34:F47) -> 1016 | H49: =SUM(H34:H47) -> 0 | I49: =SUM(I34:I47) -> 6429
A53: Uitslagen 2024 | F53: Gewicht | I53: Punten
A54: Koning 2024 | B54: 1 | C54: Ronnie van der Beek | F54: 12135 | G54: gram | I54: 4 | J54: punten
B55: 2 | C55: Frans Bonants | F55: 7616 | G55: gram | I55: 7 | J55: punten
B56: 3 | C56: Roy Verbroekken | F56: 5097 | G56: gram | I56: 9 | J56: punten
B57: 4 | C57: Man Verbroekken | F57: 3262 | G57: gram | I57: 15 | J57: punten
B58: 5 | C58: Sjaak Thoonen | F58: 2322 | G58: gram | I58: 16 | J58: punten
B59: 6 | C59: Jan Arts | F59: 2329 | G59: gram | I59: 17 | J59: punten
B60: 7 | C60: Ard van den Berg | F60: 1544 | G60: gram | I60: 21 | J60: punten
B61: 8 | C61: Rudie de Haan | F61: 1783 | G61: gram | I61: 22 | J61: punten
B62: 9 | C62: Gerrie Michielsen | F62: onvoldoende wedstrijden
B63: 10 | C63: Henny van Daal | F63: onvoldoende wedstrijden
B64: 11 | C64: Jan Cornelissen | F64: onvoldoende wedstrijden
B65: 12 | C65: Sven Cornelissen | F65: onvoldoende wedstrijden
A67: Algemeen Kampioen | B67: Frans Bonants | I67: 18 | J67: punten
A69: van den Heuvel Trofee | B69: Frans Bonants | F69: 2390 | G69: gram
A70: Verenigingsbeker | B70: Frans Bonants | F70: 666 | G70: gram
A71: Clubbeker | B71: Frans Bonants | F71: 484 | G71: gram
A72: Viltbeker | B72: Ronnie van der Beek | F72: 11213 | G72: gram

Sheet prijzen
A2: aantal pers. | B2: prijzen | N2: totaal inleg:
A3: 3 | B3: 10 | D3: 5 | O3: 15
A4: 4 | B4: 12 | D4: 8 | O4: =SUM(B4:N4) -> 20
A5: 5 | B5: 15 | D5: 10 | F5: of | H5: 12 | J5: 8 | L5: 5 | O5: 25
A6: 6 | B6: 12 | D6: 10 | F6: 8 | O6: 30
A7: 7 | B7: 15 | D7: 12 | F7: 8 | H7: 15 | J7: 10 | L7: 6 | N7: 4 | O7: 35
A8: 8 | B8: 15 | D8: 12 | F8: 8 | H8: 5 | O8: 40
A9: 9 | B9: 16 | D9: 13 | F9: 10 | H9: 6 | O9: 45
A10: 10 | B10: 15 | D10: 12 | F10: 10 | H10: 8 | J10: 5 | O10: 50
A11: 11 | B11: 16 | D11: 13 | F11: 11 | H11: 9 | J11: 6 | O11: 55
A12: 12 | B12: 15 | D12: 13 | F12: 11 | H12: 9 | J12: 7 | L12: 5 | O12: =SUM(B12:M12) -> 60
A13: 13 | B13: 16 | D13: 14 | F13: 12 | H13: 10 | J13: 8 | L13: 5 | O13: =SUM(B13:M13) -> 65
A14: 14 | B14: 16 | D14: 14 | F14: 11 | H14: 9 | J14: 8 | L14: 7 | N14: 5 | O14: =SUM(B14:N14) -> 70
A15: 15 | B15: 18 | D15: 15 | F15: 12 | H15: 9 | J15: 8 | L15: 7 | N15: 6 | O15: =SUM(B15:N15) -> 75
